bitfinex/quotes_ETHUSD_20260313
["timestamp","ask_amount","ask_price","bid_price","bid_amount"]
[1773414409306,1.59969591,2151.6,2151.2,887.08130584]
[1773414409480,1.56969028,2151.6,2151.2,887.08130584]
[1773414409796,1.52698187,2151.6,2151.2,887.08130584]
[1773414410013,7.47404299,2151.6,2151.2,886.93130584]
[1773414410191,7.43197469,2151.6,2151.2,886.93130584]
[1773414410391,7.38960117,2151.6,2151.2,886.93130584]
[1773414410718,7.33094646,2151.6,2151.2,886.93130584]
[1773414410923,1.614,2151.5,2151.2,886.93130584]
[1773414411085,6.11146686,2151.4,2151.2,786.68790488]
[1773414411290,6.09676629,2151.4,2151.2,776.40159763]
[1773414411492,6.06881517,2151.4,2151.2,776.40159763]
[1773414411692,6.02540287,2151.4,2151.2,776.40159763]
[1773414411994,5.99782723,2151.4,2151.2,602.66892621]
[1773414412290,5.9408264,2151.4,2151.2,509.35408651]
[1773414412510,5.88468223,2151.4,2151.2,509.35408651]
[1773414412719,5.84265214,2151.4,2151.2,464.40463463]
[1773414412921,5.84265214,2151.4,2151.2,439.94634474]
[1773414413233,18.98319342,2151.3,2151.2,372.74966887]
[1773414413398,7.25967642,2151.3,2151.2,310.71597963]
[1773414413591,10.40767642,2151.3,2151.2,304.64937413]
[1773414413913,10.40767642,2151.3,2151.2,296.53521426]
[1773414414106,10.40867642,2151.3,2151.2,233.30346562]
[1773414414425,10.40867642,2151.3,2151.2,228.84339754]
[1773414414634,9.27491362,2151.3,2151.2,220.80597336]
[1773414414939,9.27491362,2151.3,2151.2,201.69574854]
[1773414414940,10.82701497,2151.3,2151.2,201.69574854]
[1773414415091,12.054639,2151.3,2151.2,129.98906539]
[1773414415291,7.74291362,2151.3,2151.2,129.98906539]
[1773414415528,7.72805651,2151.3,2151.2,129.98906539]
[1773414415728,6.11105651,2151.3,2151.2,129.98906539]
[1773414416031,1.58602599,2151.3,2151.2,134.6370654]
[1773414416337,4.64557268,2152.6,2151.2,131.15120242]
[1773414416517,4.64557268,2152.6,2151.2,129.98906539]
[1773414416518,6.11161569,2152.4,2151.2,129.98906539]
[1773414416693,6.11161569,2152.4,2151.3,68.68948503]
[1773414417193,6.12591362,2152.2,2151.3,68.68948503]
[1773414417399,6.12591362,2152.0,2151.3,68.68948503]
[1773414417603,6.08376361,2152.0,2151.3,66.08948503]
[1773414417814,6.0405,2152.0,2151.3,66.08948503]
[1773414418232,6.0405,2152.0,2151.2,129.98906539]
[1773414418233,6.12591362,2151.8,2151.2,129.98906539]
[1773414418553,6.09668115,2151.5,2151.2,78.20137137]
[1773414418842,7.68668317,2151.4,2151.2,78.01787964]
[1773414419206,7.6426656,2151.4,2151.2,28.65016482]
[1773414419402,7.58525934,2151.4,2151.2,28.65016482]
[1773414419637,7.54067638,2151.4,2151.2,28.65016482]
[1773414419936,7.4822676,2151.4,2151.2,28.65016482]
[1773414420129,7.4673248,2151.4,2151.2,28.65016482]
[1773414420431,1.60599347,2151.4,2151.2,28.65016482]
[1773414420632,1.621,2151.4,2151.3,28.70710555]
[1773414420836,0.20018585,2151.4,2151.3,63.86550555]
[1773414421031,1.621,2151.4,2151.3,63.86550555]
[1773414421238,1.622,2151.8,2151.4,63.86550555]
[1773414421419,0.20490176,2152.2,2151.5,33.5364]
[1773414421420,1.60748611,2151.7,2151.5,33.5364]
[1773414421733,6.09693726,2151.6,2151.2,28.65016482]
[1773414422335,6.09693726,2151.6,2151.2,11.58754301]
[1773414422336,7.64903861,2151.6,2151.2,11.58754301]
[1773414422638,1.59349387,2151.7,2151.2,8.49254301]
[1773414422826,11.01591362,2151.6,2151.2,8.49254301]
[1773414423029,0.23727413,2151.7,2151.2,69.1286401]
[1773414423228,1.623,2151.5,2151.2,69.1286401]
[1773414423413,6.12591362,2152.0,2151.2,69.1286401]
[1773414423414,0.23316353,2152.0,2151.2,69.1286401]
[1773414423618,6.12591362,2152.4,2151.3,60.63609709]
[1773414423820,1.1614229,2152.6,2151.3,60.63609709]
[1773414423821,1.623,2152.3,2151.3,60.63609709]
[1773414425338,1.16160208,2152.2,2151.3,60.63609709]
[1773414425739,1.624,2152.2,2151.5,1.55210135]
[1773414426132,0.30534625,2152.7,2151.9,1.55210135]
[1773414426329,0.29082971,2152.7,2151.9,7.54466346]
[1773414426528,1.624,2152.9,2152.3,1.55210135]
[1773414426836,10.22212647,2153.8,2152.3,1.55210135]
[1773414426837,0.22997052,2153.1,2152.4,5.99256211]
[1773414427037,0.22997052,2153.1,2152.4,66.6286592]
[1773414427536,1.61116168,2153.1,2152.4,66.6286592]
[1773414427733,1.56706721,2153.1,2152.4,66.6286592]
[1773414428033,1.49730579,2153.1,2152.4,66.6286592]
[1773414428211,1.49730579,2153.1,2152.4,39.52896211]
[1773414428407,1.45421691,2153.1,2152.4,5.99256211]
[1773414428613,1.4114903,2153.1,2152.5,60.63609709]
[1773414428945,2.49902556,2153.1,2152.5,60.63609709]
[1773414429122,2.48451083,2153.1,2152.5,60.63609709]
[1773414429310,2.48451083,2153.1,2152.0,5.99256211]
[1773414429311,2.47050852,2153.1,2152.0,5.99256211]
[1773414429510,2.44162117,2153.1,2152.1,60.63609709]
[1773414429959,1.625,2153.1,2152.1,136.6152982]
[1773414430249,1.625,2153.1,2152.1,60.63609709]
[1773414430606,6.12591362,2153.2,2152.1,60.63609709]
[1773414430812,1.625,2153.0,2152.1,60.63609709]
[1773414431049,1.61034443,2153.0,2152.1,60.63609709]
[1773414431246,1.59575341,2153.0,2152.1,130.62273609]
[1773414431452,1.14621105,2152.9,2152.1,130.62273609]
[1773414431611,1.56692446,2153.0,2152.1,130.62273609]
[1773414431812,1.625,2152.9,2152.2,5.99256211]
[1773414432311,1.625,2152.9,2152.3,60.63609709]
[1773414432534,1.625,2152.9,2151.7,7.15439633]
[1773414432857,10.83560814,2153.3,2152.1,69.986639]
[1773414432858,1.22656301,2153.3,2152.1,69.986639]
[1773414433055,0.065536,2153.1,2152.0,5.99256211]
[1773414433255,0.065536,2153.1,2152.1,33.5364]
[1773414433561,1.16117045,2153.0,2152.1,60.63609709]
[1773414433867,4.71021783,2153.1,2152.1,60.63609709]
[1773414433868,0.001,2152.7,2152.1,60.63609709]
[1773414435990,4.64415487,2153.3,2152.2,65.46752568]
[1773414436156,1.39186492,2153.4,2152.3,5.99256211]
[1773414436444,1.624,2153.5,2152.7,75.97920111]
[1773414436648,1.624,2153.6,2152.7,5.99256211]
[1773414436848,1.624,2153.7,2152.9,5.99256211]
[1773414437049,0.001,2154.1,2153.1,7.61887012]
[1773414437238,1.16161588,2154.1,2153.2,39.52896211]
[1773414437435,0.001,2154.1,2153.2,39.52896211]
[1773414437632,1.4530075,2154.3,2153.3,31.93112568]
[1773414437859,1.43871757,2154.3,2153.3,31.93112568]
[1773414438060,0.27824246,2154.3,2153.5,5.99256211]
[1773414438562,0.24947817,2154.3,2153.5,5.99256211]
[1773414438759,0.1925166,2154.3,2153.7,5.99256211]
[1773414438930,1.2543192,2154.4,2153.7,5.99256211]
[1773414439136,1.2543192,2154.4,2153.8,59.47496357]
[1773414439446,1.25433908,2154.4,2153.8,59.47496357]
[1773414439649,1.25433908,2154.4,2153.8,25.93856357]
[1773414439846,1.25433908,2154.4,2153.2,5.99256211]
[1773414440029,1.25433908,2154.4,2153.3,5.99256211]
[1773414440228,1.623,2154.3,2153.3,64.49093044]
[1773414440661,1.623,2154.3,2153.4,5.99256211]
[1773414440662,1.57956206,2154.3,2153.4,5.99256211]
[1773414440872,1.564771,2154.3,2153.5,69.986639]
[1773414441030,1.60802801,2154.3,2153.5,64.56278017]
[1773414441371,2.82051673,2154.4,2153.5,64.56278017]
[1773414441540,2.79121474,2154.4,2153.5,64.56278017]
[1773414441743,2.74746903,2154.4,2153.5,64.56278017]
[1773414441987,1.58048772,2154.4,2153.6,6.06441184]
[1773414442133,2.69786295,2154.4,2153.6,6.06441184]
[1773414442336,2.66885885,2154.4,2153.6,6.06441184]
[1773414442545,2.64045756,2154.4,2153.6,6.06441184]
[1773414442754,2.61228375,2154.4,2153.6,6.06441184]
[1773414442939,2.55422352,2154.4,2153.6,6.06441184]
[1773414443151,2.51055204,2154.4,2153.6,6.06441184]
[1773414443350,2.48154938,2154.4,2153.6,6.06441184]
[1773414443558,1.623,2155.4,2154.1,6.06441184]
[1773414443757,1.622,2155.4,2154.3,6.06441184]
[1773414444268,6.18404938,2155.3,2154.4,12.28044207]
[1773414444566,6.18404938,2155.3,2154.1,6.06441184]
[1773414444567,0.065536,2155.3,2154.1,6.06441184]
[1773414444866,0.065536,2155.3,2154.2,6.06441184]
[1773414445441,0.065536,2155.1,2154.2,6.06441184]
[1773414446142,0.065536,2155.1,2154.3,12.28044207]
[1773414446351,1.15998515,2155.2,2154.3,12.20845207]
[1773414446554,1.1597699,2155.6,2154.4,6.06441184]
[1773414446771,2.7807699,2155.6,2154.4,6.06441184]
[1773414446971,0.065536,2155.5,2154.4,6.06441184]
[1773414447176,0.001,2155.4,2154.4,6.06441184]
[1773414447353,0.001,2155.4,2154.5,12.20845207]
[1773414447560,1.16087751,2155.4,2154.3,13.36890694]
[1773414447865,2.78187751,2155.4,2154.4,6.06441184]
[1773414448385,0.001,2155.4,2154.6,6.06441184]
[1773414448751,0.001,2155.4,2154.7,18.27286391]
[1773414448955,0.001,2155.4,2154.7,6.06441184]
[1773414449189,2.76696282,2155.6,2154.8,12.20845207]
[1773414449483,1.70069645,2156.0,2154.9,6.06441184]
[1773414449677,1.15956082,2156.0,2155.0,6.06441184]
[1773414450188,4.63735744,2156.5,2154.9,2.70495173]
[1773414450189,4.62310794,2156.8,2155.5,6.06441184]
[1773414450356,6.11851338,2156.6,2155.1,76.05105084]
[1773414450556,6.18404938,2156.5,2155.2,6.06441184]
[1773414450962,6.18404938,2156.5,2155.3,11.06282805]
[1773414450963,1.62,2156.4,2155.3,11.06282805]
[1773414451356,0.065536,2156.3,2155.3,17.12723989]
[1773414451556,1.15944717,2156.2,2155.3,17.12723989]
[1773414451756,2.77944717,2156.2,2155.3,17.12723989]
[1773414452262,6.18404938,2156.1,2154.5,6.06441184]
[1773414452570,6.18404938,2156.1,2154.7,6.06441184]
[1773414452750,0.0506926,2156.1,2155.0,6.06441184]
[1773414452954,1.14532825,2156.2,2155.1,6.06441184]
[1773414453154,2.99941475,2156.2,2155.2,11.06282805]
[1773414453354,1.619,2156.1,2155.2,11.06282805]
[1773414453565,1.619,2156.0,2155.2,11.06282805]
[1773414453782,1.15960851,2155.9,2155.2,11.06282805]
[1773414454385,1.08960851,2155.9,2155.2,11.06282805]
[1773414454986,1.04571203,2155.9,2155.2,11.06282805]
[1773414455301,4.63843406,2156.3,2155.2,11.06282805]
[1773414455302,1.683536,2156.3,2155.2,11.06282805]
[1773414455463,1.683536,2156.3,2155.2,17.12723989]
[1773414455796,0.065536,2156.1,2155.2,11.06282805]
[1773414456366,6.11851338,2156.1,2155.2,11.06282805]
[1773414456571,6.07553999,2156.1,2155.2,11.06282805]
[1773414456766,6.07553999,2156.1,2154.6,6.06441184]
[1773414456971,11.00851338,2155.9,2154.7,10.86693654]
[1773414457179,6.11851338,2155.8,2154.7,10.86693654]
[1773414457589,7.27796055,2156.2,2154.9,69.986639]
[1773414457791,1.1597699,2155.6,2154.8,6.06441184]
[1773414458597,1.1597699,2155.6,2154.4,6.06441184]
[1773414458766,1.1597699,2155.6,2154.5,69.986639]
[1773414458964,1.1597699,2155.6,2154.5,80.85357554]
[1773414459197,1.1597699,2155.6,2154.6,0.04641232]
[1773414459565,1.1597699,2155.6,2154.4,7.22482285]
[1773414459566,1.1597699,2155.6,2154.7,10.86693654]
[1773414459891,12.16828328,2155.6,2154.7,0.0011]
[1773414460397,12.16828328,2155.6,2154.8,10.86693654]
[1773414460963,0.065536,2155.5,2154.8,10.86693654]
[1773414461781,0.065536,2155.3,2154.8,10.86693654]
[1773414462481,0.065536,2155.3,2154.7,0.0011]
[1773414462683,0.065536,2155.3,2154.5,0.0011]
[1773414462898,6.18404938,2155.3,2154.6,7.67568622]
[1773414463703,0.065536,2155.1,2154.6,7.60369622]
[1773414464000,0.065536,2154.9,2154.5,0.0011]
[1773414464198,1.618,2154.8,2154.5,0.0011]
[1773414464377,1.618,2154.8,2154.5,7.60479622]
[1773414464995,0.065536,2154.9,2154.5,7.60479622]
[1773414465210,1.618,2155.0,2154.5,7.60479622]
[1773414465510,6.17104605,2155.7,2154.6,6.11082416]
[1773414465511,2.77871927,2155.7,2154.6,6.11082416]
[1773414465710,0.001,2155.7,2154.9,6.06441184]
[1773414466019,0.001,2155.7,2154.9,7.22454364]
[1773414466313,6.32413151,2156.6,2155.2,69.986639]
[1773414466479,3.15,2157.2,2155.8,6.0385486]
[1773414466683,3.15,2157.2,2155.9,6.0385486]
[1773414466684,1.39412633,2157.2,2155.9,6.0385486]
[1773414466879,1.66992122,2157.3,2156.2,6.0385486]
[1773414467311,0.065536,2157.2,2156.3,7.60369622]
[1773414467514,6.38966751,2157.2,2155.7,6.0385486]
[1773414467712,0.065536,2157.0,2155.8,7.60369622]
[1773414467893,2.77807088,2156.9,2155.8,7.60369622]
[1773414468487,9.10220239,2156.9,2155.8,7.60369622]
[1773414468685,2.77807088,2156.9,2155.8,7.60369622]
[1773414470623,1.619,2156.8,2155.8,7.60369622]
[1773414470792,1.619,2156.8,2155.8,13.64224482]
[1773414470988,1.619,2156.8,2155.9,6.4243329]
[1773414471188,1.619,2156.8,2156.0,7.60369622]
[1773414472010,1.15917837,2156.7,2156.0,7.60369622]
[1773414472205,1.15917837,2156.7,2155.4,1.15984022]
[1773414472206,2.77817215,2156.8,2156.1,14.02802912]
[1773414472432,2.77817215,2156.8,2156.1,6.4243329]
[1773414472637,2.77817215,2156.8,2156.2,7.60369622]
[1773414473129,2.77817215,2156.8,2155.5,6.4243329]
[1773414473130,0.065536,2156.7,2155.5,6.4243329]
[1773414473499,0.065536,2156.7,2156.0,0.0011]
[1773414473695,0.066536,2156.7,2156.0,0.0011]
[1773414474224,1.22575575,2156.7,2156.0,0.0011]
[1773414474421,1.22575575,2156.7,2156.0,6.4254329]
[1773414475251,1.22575575,2156.7,2156.0,0.0011]
[1773414477814,1.16021975,2156.7,2156.0,6.4254329]
[1773414478020,1.16017921,2156.7,2156.0,6.4254329]
[1773414478526,0.001,2156.7,2156.0,6.4254329]
[1773414478841,0.001,2156.7,2156.0,7.58497655]
[1773414479030,0.001,2156.7,2156.2,6.4243329]
[1773414479216,2.77813385,2156.8,2156.2,6.4243329]
[1773414479417,2.76334666,2156.8,2156.2,6.4243329]
[1773414479617,2.72087266,2156.8,2156.2,6.4243329]
[1773414479818,2.6775144,2156.8,2156.2,6.4243329]
[1773414480032,2.66357744,2156.8,2156.2,6.4243329]
[1773414480316,2.66357744,2156.8,2155.8,6.4254329]
[1773414480850,0.065536,2156.7,2155.8,0.0011]
[1773414481063,2.41159111,2156.7,2155.8,0.0011]
[1773414481264,0.21502099,2156.6,2155.8,0.0011]
[1773414481772,1.15869484,2157.6,2156.2,6.4243329]
[1773414481940,1.621,2157.5,2156.2,6.4243329]
[1773414482434,1.15880226,2157.4,2156.2,6.4243329]
[1773414482951,1.15880226,2157.4,2156.2,7.58376827]
[1773414483340,1.15880226,2157.4,2156.5,6.4243329]
[1773414483847,0.065536,2157.3,2156.5,6.4243329]
[1773414484045,0.23546551,2157.6,2156.5,6.4243329]
[1773414484046,1.15872497,2157.6,2156.5,6.4243329]
[1773414484544,1.15872497,2157.6,2156.7,6.4243329]
[1773414485065,1.09006178,2157.7,2156.7,6.4243329]
[1773414485266,1.15869484,2157.6,2156.7,6.4243329]
[1773414485447,2.24872741,2157.7,2156.7,6.4243329]
[1773414485644,1.94358366,2157.7,2156.7,6.4243329]
[1773414485837,0.30460484,2159.5,2157.1,6.4243329]
[1773414485838,1.15815806,2158.6,2157.1,6.4243329]
[1773414486242,1.686536,2158.5,2157.1,6.4243329]
[1773414486443,1.15826538,2158.4,2157.1,6.4243329]
[1773414486845,0.001,2157.4,2157.1,6.4243329]
[1773414490052,0.065536,2158.1,2157.1,6.4243329]
[1773414490571,1.15848007,2158.0,2157.1,6.4243329]
[1773414493660,0.065536,2157.9,2156.5,6.4243329]
[1773414493851,0.065536,2157.9,2156.7,6.4243329]
[1773414494052,0.065536,2157.9,2156.9,6.4243329]
[1773414494378,0.065536,2157.9,2156.1,6.4243329]
[1773414494582,0.065536,2157.9,2156.0,2.7031395]
[1773414494583,0.065536,2157.7,2156.5,6.4243329]
[1773414494760,0.065536,2157.7,2156.6,6.4243329]
[1773414495474,1.15858745,2157.8,2156.6,6.4243329]
[1773414495677,1.15858745,2157.8,2156.6,7.96686022]
[1773414496461,4.6343498,2157.9,2156.8,6.4243329]
[1773414497188,1.15842639,2158.1,2157.0,6.4243329]
[1773414497390,6.25370557,2158.2,2157.0,6.4243329]
[1773414497391,2.7784159,2158.2,2157.0,6.4243329]
[1773414497702,1.29458074,2158.7,2157.7,6.4243329]
[1773414498980,1.682536,2158.6,2157.0,7.58335005]
[1773414499662,1.617,2158.6,2157.0,7.58335005]
[1773414500184,0.065536,2158.5,2157.2,6.4243329]
[1773414500397,1.29458074,2158.7,2157.4,6.4243329]
[1773414500600,1.15821172,2158.5,2157.4,6.4243329]
[1773414500900,1.15821172,2158.5,2157.4,7.58313014]
[1773414501106,0.001,2157.6,2157.4,7.58313014]
[1773414501266,1.15821172,2158.5,2157.5,5.9725718]
[1773414502194,1.15819059,2158.6,2157.6,5.9725718]
[1773414503059,1.15819059,2158.6,2157.6,7.13125694]
[1773414503461,10.27019274,2159.0,2157.6,7.13125694]
[1773414503462,4.63163059,2159.1,2158.0,5.9725718]
[1773414503887,0.065536,2159.0,2158.0,5.9725718]
[1773414504073,0.065536,2158.8,2157.7,5.9725718]
[1773414504287,0.065536,2158.6,2157.3,5.9725718]
[1773414504532,0.065536,2158.6,2157.4,0.04635209]
[1773414504668,1.15821172,2158.5,2157.4,1.20511844]
[1773414504863,1.15817848,2158.6,2157.4,7.17769024]
[1773414505068,1.91879905,2159.2,2157.7,5.9725718]
[1773414505285,1.15788986,2159.1,2158.0,5.9725718]
[1773414505494,1.15788986,2159.1,2158.2,5.9725718]
[1773414505682,1.15788986,2159.1,2158.1,2.54712973]
[1773414506289,1.15788986,2159.1,2157.8,5.9725718]
[1773414506807,4.63148702,2159.2,2157.9,7.13110555]
[1773414507199,6.24548702,2159.2,2157.9,7.13110555]
[1773414507367,4.63148702,2159.2,2157.9,7.13110555]
[1773414507779,2.77182545,2159.3,2158.0,5.9725718]
[1773414507983,1.15782545,2159.3,2158.3,5.9725718]
[1773414508810,4.63070705,2159.5,2158.3,5.9725718]
[1773414509106,4.63070705,2159.5,2158.3,7.13088522]
[1773414509504,4.63070705,2159.5,2158.3,5.9725718]
[1773414509505,0.065536,2159.4,2158.3,5.9725718]
[1773414509684,5.95079121,2159.4,2157.9,5.9725718]
[1773414510301,5.95079121,2159.0,2157.5,7.13126911]
[1773414510477,5.95079121,2159.0,2157.5,5.9725718]
[1773414510677,5.95079121,2159.0,2157.6,0.04634779]
[1773414510678,5.88525521,2158.7,2157.6,0.04634779]
[1773414510880,1.15815806,2158.6,2157.6,0.04634779]
[1773414511174,7.04341327,2158.6,2157.2,7.13144968]
[1773414511790,7.04341327,2158.6,2157.3,0.04635423]
[1773414512386,2.77115806,2158.6,2157.4,5.9725718]
[1773414512588,5.88525521,2158.5,2157.5,0.04634994]
[1773414512790,5.88525521,2158.5,2157.3,0.04635423]
[1773414513011,1.15805076,2158.8,2157.5,1.54252732]
[1773414513307,2.77105076,2158.8,2157.6,6.01891959]
[1773414513485,5.88525521,2159.3,2157.9,5.9725718]
[1773414513486,4.63155944,2159.2,2157.9,5.9725718]
[1773414513685,4.63155944,2159.2,2158.0,6.018911]
[1773414513880,6.24455944,2159.2,2158.0,5.9725718]
[1773414514081,6.24455944,2159.2,2158.1,0.04633705]
[1773414514082,5.88525521,2159.1,2158.1,0.04633705]
[1773414514411,1.678536,2159.1,2157.9,5.9725718]
[1773414514611,1.15783623,2159.2,2158.0,6.018911]
[1773414515198,1.15783623,2159.2,2158.2,5.9725718]
[1773414515398,1.613,2159.6,2158.3,5.9725718]
[1773414515702,0.065536,2159.6,2158.3,5.9725718]
[1773414516112,0.065536,2159.6,2157.9,4.63370557]
[1773414516113,5.88525521,2159.6,2157.3,3.29016105]
[1773414516316,1.15756818,2159.7,2157.6,5.9725718]
[1773414516317,5.88525521,2159.2,2157.6,5.9725718]
[1773414516513,5.99712611,2159.1,2157.6,5.9725718]
[1773414516703,5.99712611,2159.1,2157.7,6.01891744]
[1773414517100,1.15794349,2159.0,2157.7,5.9725718]
[1773414517332,1.6583349,2158.9,2157.7,5.9725718]
[1773414517700,0.065536,2158.8,2157.3,7.13139275]
[1773414517895,0.0463349,2158.7,2157.3,7.1314225]
[1773414518110,5.93159011,2158.7,2157.4,0.04635209]
[1773414518329,0.065536,2158.6,2157.4,0.04635209]
[1773414518508,0.0463349,2158.5,2157.4,0.04635209]
[1773414519224,1.15826538,2158.4,2157.3,5.9725718]
[1773414519396,0.0463349,2158.3,2157.4,0.04635209]
[1773414519598,0.0463349,2158.3,2157.4,6.01892389]
[1773414519797,1.15794349,2159.0,2157.9,5.9725718]
[1773414520026,1.15794349,2159.0,2158.0,0.0463392]
[1773414520202,1.15794349,2159.0,2158.0,6.018911]
[1773414520403,1.15794349,2159.0,2158.0,5.9725718]
[1773414520729,1.15794349,2159.0,2157.8,1.54252732]
[1773414520730,1.15794349,2159.0,2158.1,6.01890885]
[1773414521110,1.15794349,2159.0,2158.2,1.15837271]
[1773414521527,1.15794349,2159.0,2158.1,7.13095754]
[1773414521735,1.15772899,2159.4,2158.2,6.0189067]
[1773414521915,1.15772899,2159.4,2158.2,5.9725718]
[1773414523323,1.15772899,2159.4,2158.2,7.13091763]
[1773414523730,0.065536,2159.3,2157.8,5.9725718]
[1773414525165,0.065536,2159.3,2157.8,6.01891529]
[1773414525166,5.88525521,2159.2,2157.8,6.01891529]
[1773414525456,5.95079121,2158.7,2157.4,5.9725718]
[1773414525618,7.49625521,2158.6,2157.4,5.9725718]
[1773414525819,7.49625521,2158.6,2157.5,0.04634994]
[1773414526017,5.88525521,2159.0,2157.5,6.01892174]
[1773414526237,0.065536,2158.9,2157.7,5.9725718]
[1773414527124,0.065536,2158.9,2157.8,0.04634349]
[1773414527323,0.23333526,2159.1,2158.0,6.34442809]
[1773414527525,4.63255944,2159.2,2158.0,6.34442809]
[1773414528027,4.86819908,2159.2,2158.0,6.34442809]
[1773414528245,4.63255944,2159.2,2158.0,6.34442809]
[1773414529349,4.63255944,2159.2,2158.1,7.50285448]
[1773414529350,0.001,2159.2,2158.1,7.50285448]
[1773414530137,0.001,2159.2,2158.1,6.34442809]
[1773414530552,0.001,2159.2,2158.0,1.15846148]
[1773414530553,5.99956399,2159.2,2157.7,7.50304249]
[1773414530729,5.99956399,2159.2,2157.8,0.04634349]
[1773414530930,5.99956399,2159.2,2157.8,6.17054601]
[1773414531368,6.06068533,2158.9,2157.4,0.0011]
[1773414531658,1.15788986,2159.1,2157.4,7.2841009]
[1773414531860,0.065536,2158.9,2157.7,6.12420252]
[1773414532037,0.04634349,2158.8,2157.8,0.04634349]
[1773414532231,0.04634349,2158.9,2157.8,6.17054601]
[1773414532433,0.04634349,2158.9,2157.8,6.12420252]
[1773414532636,6.06068533,2158.9,2157.4,6.12530252]
[1773414532836,6.06068533,2158.6,2157.4,0.0011]
[1773414533030,0.03592901,2158.4,2157.4,0.0011]
[1773414533243,5.98091169,2158.5,2157.4,0.0011]
[1773414533430,1.129699,2158.4,2157.4,0.0011]
[1773414533651,1.13255919,2158.4,2157.4,0.04745209]
[1773414533846,1.10417292,2158.4,2157.4,0.04745209]
[1773414534047,1.0618471,2158.4,2157.4,0.0011]
[1773414534247,1.03371126,2158.4,2157.4,0.0011]
[1773414534564,1.01918374,2158.4,2157.4,0.0011]
[1773414535848,0.03198063,2158.4,2157.4,0.0011]
[1773414537335,5.99514933,2158.3,2157.4,0.0011]
[1773414537538,6.02712996,2158.2,2157.4,0.0011]
[1773414537758,1.15842639,2158.1,2157.4,0.0011]
[1773414538392,1.19040702,2158.1,2157.4,0.0011]
[1773414540467,7.18555635,2158.1,2157.4,0.0011]
[1773414541364,7.18555635,2158.1,2157.1,0.0011]
[1773414542295,6.06068533,2158.0,2157.1,0.0011]
[1773414542470,6.02712996,2157.9,2157.1,0.0011]
[1773414543381,0.03198063,2157.9,2157.1,6.12530252]
[1773414543707,0.03198063,2157.9,2157.1,0.0011]
[1773414543870,1.15853375,2157.9,2157.1,0.0011]
[1773414544193,1.19051438,2157.9,2157.1,0.0011]
[1773414544589,7.18566371,2157.9,2157.1,0.0011]
[1773414544775,1.41770146,2157.9,2157.1,0.0011]
[1773414547176,7.41285079,2157.9,2157.1,0.0011]
[1773414547806,0.065536,2157.8,2157.1,0.0011]
[1773414547993,1.15869484,2157.6,2157.1,0.0011]
[1773414548196,0.03198063,2157.5,2157.1,0.0011]
[1773414548711,1.15869484,2157.6,2157.1,0.0011]
[1773414548910,0.01810692,2157.5,2157.1,0.0011]
[1773414550184,1.15858745,2157.8,2157.1,6.12530252]
[1773414550495,7.15373678,2157.8,2157.1,0.0011]
[1773414550694,12.04373678,2157.8,2157.1,0.0011]
[1773414550875,5.99514933,2157.7,2157.1,0.0011]
[1773414551308,5.99514933,2157.5,2156.9,0.0011]
[1773414552201,1.15880226,2157.4,2156.9,0.0011]
[1773414552516,7.15395159,2157.4,2156.9,0.0011]
[1773414552720,1.613,2157.3,2156.9,0.0011]
[1773414552921,1.613,2157.3,2156.5,0.0011]
[1773414553327,7.60814933,2157.3,2156.5,0.0011]
[1773414553528,6.43124207,2156.8,2155.8,0.0011]
[1773414553713,0.05147169,2156.7,2155.9,0.0011]
[1773414554024,1.59930272,2156.8,2155.8,0.0011]
[1773414554227,7.13997605,2156.7,2155.8,0.0011]
[1773414554425,5.99514933,2156.6,2155.8,0.0011]
[1773414555899,5.99514933,2156.4,2155.8,0.0011]
[1773414556131,1.14482672,2156.7,2155.8,0.0011]
[1773414556433,1.680536,2156.7,2155.8,0.0011]
[1773414556800,1.90787266,2156.7,2155.8,0.0011]
[1773414557124,0.22733666,2156.7,2155.8,6.12530252]
[1773414557420,1.15912462,2156.8,2156.1,0.0011]
[1773414557734,1.15912462,2156.8,2155.8,6.12530252]
[1773414557891,1.15912462,2156.8,2156.0,0.0011]
[1773414558098,0.23297067,2156.9,2156.0,6.12420252]
[1773414558326,1.15904253,2157.0,2156.3,1.1593934]
[1773414558500,1.15904253,2157.0,2156.3,1.20576913]
[1773414558702,1.15899331,2157.1,2156.3,7.32997165]
[1773414559022,1.15858745,2157.8,2157.0,0.0011]
[1773414559323,1.15858745,2157.8,2156.8,6.12420252]
[1773414559521,1.15858745,2157.8,2157.0,0.0011]
[1773414559728,1.15858745,2157.8,2156.8,6.12420252]
[1773414560243,1.38752257,2157.8,2156.8,6.12530252]
[1773414560404,1.38752257,2157.8,2156.4,6.12420252]
[1773414560732,1.38752257,2157.8,2156.6,0.0011]
[1773414561230,1.38752257,2157.8,2156.8,0.0011]
[1773414561430,1.38752257,2157.8,2156.4,6.12420252]
[1773414561617,1.38752257,2157.8,2156.4,6.12530252]
[1773414561807,3.00452257,2157.8,2156.5,6.51189771]
[1773414562132,9.18160924,2157.8,2156.5,6.46552628]
[1773414562333,6.17708667,2157.7,2156.5,6.46552628]
[1773414562833,1.54124207,2157.5,2156.1,10.31659088]
[1773414563142,7.6894557,2157.5,2156.1,9.1571209]
[1773414563317,7.6894557,2157.5,2156.1,10.31661848]
[1773414563519,7.6894557,2157.5,2156.1,10.31771848]
[1773414563702,6.17708667,2157.5,2156.1,10.31661848]
[1773414563898,7.71832874,2157.5,2156.1,9.1571209]
[1773414564103,6.24262267,2157.4,2156.1,9.1571209]
[1773414564304,6.17708667,2157.3,2156.1,6.46552628]
[1773414564501,6.17708667,2157.2,2155.8,1.16074733]
[1773414564706,1.15896342,2157.1,2155.8,1.16184733]
[1773414564906,12.22605009,2157.1,2155.8,0.0011]
[1773414565133,7.85962267,2157.0,2155.8,0.0011]
[1773414565340,7.85962267,2157.0,2155.9,0.0011]
[1773414565840,1.15896342,2157.1,2156.0,6.46552628]
[1773414566044,4.63561599,2157.3,2156.2,8.00676835]
[1773414566211,1.39047166,2157.4,2156.2,8.00676835]
[1773414566212,1.39044288,2157.4,2156.8,0.0011]
[1773414566536,1.39044288,2157.4,2156.7,6.46552628]
[1773414566730,1.39044288,2157.4,2156.9,0.0011]
[1773414566933,1.39044288,2157.4,2156.7,7.62467123]
[1773414567140,1.39044288,2157.4,2156.7,6.46552628]
[1773414567318,1.39044288,2157.4,2156.9,0.0011]
[1773414567516,1.39044288,2157.4,2156.4,1.15933964]
[1773414567727,1.39044288,2157.4,2156.4,7.62486592]
[1773414567935,0.001,2157.3,2156.4,7.62486592]
[1773414568142,0.001,2157.3,2156.4,7.6712395]
[1773414568339,1.15864114,2157.7,2156.5,6.46552628]
[1773414568737,1.15864114,2157.7,2156.7,6.46662628]
[1773414568936,4.63556458,2157.9,2156.7,7.6257683]
[1773414569131,4.63556458,2157.9,2156.7,7.6246683]
[1773414569354,0.066536,2157.9,2156.8,6.46552628]